Cogmind - Beta 16 @@@ ROGUE MODE // 2025.11.30 @ 23:02:11 Player: Byrd Result: Self-destructed Performance ------------- Evolutions (2) 1000 Regions Visited (3) 600 Robots Destroyed (43) 215 Value Destroyed (1128) 1128 Prototype IDs (0) 0 Alien Tech Used (0) 0 Bonus (0) 0 TOTAL SCORE: 2943 Bonus ------- None Cogmind --------- Core Integrity 373/550 Matter 197/300 Energy 30/100 System Corruption 0% Temperature Cool (0) Movement Walking (130) Location -8/Materials Parts ------- > --- POWER (1) -------- (None) > --- PROPULSION (3) --- Titanium Leg > --- UTILITY (4) ------ Signal Interpreter Improved Field Recycling Unit > --- WEAPON (3) ------- Light Assault Rifle Rocket Launcher > --- INVENTORY (5) ---- Light Treads Improved Signal Interpreter Improved Terrain Scan Processor Katana Peak State ------------ > --- POWER ------------ Light Nuclear Core > --- PROPULSION ------- Aluminum Leg Aluminum Leg Titanium Leg > --- UTILITY ---------- Signal Interpreter Seismic Detector Light Armor Plating Improved Field Recycling Unit > --- WEAPON ----------- Ion Cannon Light Assault Rifle Katana > --- INVENTORY -------- Light Treads Improved Signal Interpreter Improved Terrain Scan Processor Rocket Launcher [Rating: 22] Favorites ----------- Power Improved Ion Engine Engine Improved Ion Engine Power Core Light Nuclear Core Propulsion Aluminum Leg Treads Light Treads Leg Aluminum Leg Utility Small Storage Unit Device Seismic Detector Storage Small Storage Unit Processor Signal Interpreter Protection Light Armor Plating Weapon Light Assault Rifle Energy Gun Particle Gun Energy Cannon Ion Cannon Ballistic Gun Light Assault Rifle Launcher Rocket Launcher Slashing Weapon Katana Build | -11 -10 -9 -8 ------- Run | Yrd Mat Mat Mat Slots Evolved 4 | . . 2 2 Power . | . . . . Propulsion 1 | . . . 1 Utility 2 | . . 1 1 Weapon 1 | . . 1 . Parts Attached 38 | 9 8 11 10 Power 5 | 1 1 1 2 Engine 4 | 1 1 1 1 Core 1 | . . . 1 Reactor . | . . . . Propulsion 10 | 2 2 2 4 Treads 1 | . . . 1 Leg 9 | 2 2 2 3 Wheel . | . . . . Hover . | . . . . Flight . | . . . . Utility 7 | 3 1 1 2 Device 4 | 2 . 1 1 Storage 1 | 1 . . . Processor 1 | . 1 . . Hackware . | . . . . Protection 1 | . . . 1 Artifact . | . . . . Weapon 16 | 3 4 7 2 Energy Gun 2 | . 2 . . Energy Cannon 1 | . . . 1 Ballistic Gun 9 | 3 2 4 . Ballistic Cannon . | . . . . Launcher 2 | . . 1 1 Special Weapon . | . . . . Impact Weapon . | . . . . Slashing Weapon 2 | . . 2 . Piercing Weapon . | . . . . Special Melee Weapon . | . . . . Unidentified Prototypes . | . . . . Parts Lost 16 | . 5 2 9 Power 2 | . . 1 1 Propulsion 6 | . 2 1 3 Utility 3 | . . . 3 Weapon 5 | . 3 . 2 Highest Loss Streak 6 | . 2 2 6 To Critical Strikes . | . . . . Average Backups 6 | 1 6 7 6 Power 1 | . 2 1 . Propulsion . | . . . . Utility 1 | . 1 1 2 Weapon 2 | . 2 3 2 Tool/Special . | . . . . Unused Backups 11 | . 5 3 3 Power 5 | . 4 . 1 Propulsion 1 | . 1 . . Utility 2 | . . . 2 Weapon 3 | . . 3 . Tool/Special . | . . . . Average Slot Usage (%) 93 | . 98 99 75 Engine 11 | . 14 11 7 Leg 22 | . 27 21 10 Device 9 | . 8 11 9 Storage 11 | . 14 11 5 Processor 7 | . 5 11 9 Energy Cannon 1 | . . . 5 Ballistic Gun 23 | . 24 30 11 Slashing Weapon 2 | . . 1 8 Peak Build Rating 22 | 9 10 16 22 Average Rating 10 | 6 7 11 15 On Entrance 7 | . 7 9 14 Avg Prop Armor Cover (%) 9 | . . . 9 Naked Turns . | . . . . Heaviest Build 30 | 15 17 19 30 Greatest Support 37 | 20 20 20 37 Greatest Overweight (x) 2 | . 1 1 2 Average Overweight (x) . | . . . . Largest Inventory Capacity 8 | 8 8 8 8 Average Capacity 7 | 7 8 8 6 Most Carried 8 | 4 8 8 8 Average Carried 6 | 1 6 7 6 Final Capacity 8 | 8 8 8 5 Final Carried 8 | 4 8 7 4 Class Distribution -------------------- 74% | Mutant 24% | Gunner Dominant Class ---------------- Mutant | -10/Materials Gunner | -9/Materials Mutant | -8/Materials Resources | -11 -10 -9 -8 ----------- Run | Yrd Mat Mat Mat Matter Collected 1069 | 312 290 189 278 Remotely . | . . . . Salvage Created 1457 | 142 669 246 400 Parts 100 | 9 48 20 23 Haulers Intercepted 1 | . . 1 . Recyclers Shooed 3 | 1 . 1 1 Parts Field Recycled . | . . . . Retrieved Matter . | . . . . Parts Self-Destructed . | . . . . Prevented . | . . . . Parts Restored . | . . . . Kills | -11 -10 -9 -8 ------- Run | Yrd Mat Mat Mat Combat Hostiles Destroyed 31 | . 17 6 8 Melee 1 | . . . 1 Guns 23 | . 17 3 3 Cannons 2 | . . . 2 AOE 5 | . . 3 2 Classes Destroyed 9 | 2 3 4 . Worker 2 | . 1 . 1 Builder 3 | . . 1 2 Tunneler 2 | 2 . . . Hauler 1 | . . 1 . Recycler 2 | 1 1 . . Mechanic 2 | . . 1 1 Swarmer 7 | . 5 2 . Grunt 20 | . 12 2 6 Sentry 4 | . . 2 2 Best Kill Streak 4 | 1 3 3 4 Combat Bots Only 3 | . 3 2 3 Max Kills in Single Turn 2 | 1 1 1 2 Gunslinging . | . . . . Exploded 1 | . . 1 1 Melee 1 | . . . 1 Uniques/NPCs Destroyed . | . . . . Combat | -11 -10 -9 -8 -------- Run | Yrd Mat Mat Mat Hostile Shots Fired 234 | . 108 49 77 Missed 68 | . 33 19 16 Hits 166 | . 75 30 61 Projectile 166 | . 75 30 61 Critical Strikes 3 | . 1 1 1 Damage Taken 2461 | . 834 516 1111 Core 357 | . 97 83 177 Absorbed by Shields . | . . . . Core Remaining (%) 80 | 100 61 79 . Volleys Fired 140 | 14 57 27 42 Largest 3 | 2 2 3 3 Hottest 113 | 40 105 70 113 Shots Fired 271 | 23 98 69 81 Gun 227 | 23 98 60 46 Cannon 28 | . . . 28 Launcher 16 | . . 9 7 Special . | . . . . Kinetic 218 | 23 89 60 46 Thermal 37 | . 9 . 28 Explosive 16 | . . 9 7 Electromagnetic . | . . . . Robot Hit Streak 19 | 3 11 19 12 Robot Miss Streak 7 | 3 4 7 4 Penetration Max . | . . . . Secondary Targets 1 | . 1 . . Max Gunslinging Chain 1 | . 1 . . Shots Hit Robots 175 | 9 69 43 54 Core Hits 79 | 4 34 16 25 Critical Kills . | . . . . Critical Parts Destroyed 2 | . . . 2 Critical Strikes 2 | . . . 2 Destroy 2 | . . . 2 Melee Attacks 4 | . . . 4 Impact . | . . . . Slashing 4 | . . . 4 Piercing . | . . . . Sneak Attacks 3 | . . . 3 Combat Hostiles . | . . . . Follow-up Attacks . | . . . . Damage Inflicted 2794 | 100 805 556 1333 Guns 1583 | 100 803 324 356 Cannons 349 | . . . 349 Explosions 609 | . . 232 377 Melee 234 | . . . 234 Ramming 19 | . 2 . 17 Kinetic 1466 | 100 686 324 356 Thermal 466 | . 117 . 349 Explosive 609 | . . 232 377 Electromagnetic . | . . . . Impact . | . . . . Slashing 234 | . . . 234 Piercing . | . . . . Highest Corruption . | . . . . Average Corruption . | . . . . Corruption Purged . | . . . . Corruption Blocked . | . . . . Overload Shots . | . . . . Overflow Damage 84 | . . . 84 Projectiles . | . . . . Explosions 23 | . . . 23 Melee 61 | . . . 61 Knockbacks 1 | . . . 1 Impact 1 | . . . 1 Kinetic . | . . . . Secondary . | . . . . Self-Inflicted Damage 272 | . . 111 161 Shots 9 | . . 5 4 Rammed . | . . . . Targets Rammed 4 | . 1 . 3 Kicked 4 | . 1 . 3 Crushed . | . . . . Highest Temperature 518 | . 182 56 518 Average Temperature 94 | . 37 20 151 Received Heat Transfer 1116 | . 414 153 549 Effects 10 | . . . 10 Shutdowns 1 | . . . 1 Energy Bleed 1 | . . . 1 Interference 4 | . . . 4 Matter Decay 1 | . . . 1 Damage (minor) 3 | . . . 3 Siege Activations . | . . . . Martial Activations . | . . . . Shielding Activations . | . . . . Robots Disrupted . | . . . . Combat Hostiles . | . . . . Robots Corrupted . | . . . . Combat Hostiles . | . . . . Parts Fried . | . . . . Impact Corruptions . | . . . . Robots Melted . | . . . . Combat Hostiles . | . . . . Parts Melted . | . . . . Heat Transferred 827 | . 272 . 555 Parts Sabotaged . | . . . . Parts Stolen . | . . . . Parts Stripped . | . . . . Power Chain Reactions . | . . . . Alert | -11 -10 -9 -8 ------- Run | Yrd Mat Mat Mat Maximum Alert Level . | . . . . Low Security (%) 100 | 100 100 100 100 Level 1 . | . . . . Level 2 . | . . . . Level 3 . | . . . . Level 4 . | . . . . Level 5 . | . . . . High Security . | . . . . Max Security . | . . . . Peak Influence 147 | 5 147 90 61 Initial 61 | . . 61 22 Average 38 | . 58 30 18 Influence Increases 1043 | 15 505 267 256 Destroy 0b10 Robot/C 620 | . 340 120 160 Destroy 0b10 Robot/NC 60 | 15 10 15 20 Destroy Leader 152 | . 80 32 40 Trap Triggered on 0b10 10 | . . 10 . Successful Hack 27 | . 13 7 7 Disable Machine 30 | . . 30 . Destroy Structure 54 | . 2 23 29 Lose Combat Pursuer 90 | . 60 30 . Influence Decreases 1001 | 15 358 359 269 Entered New Map 119 | . . 86 33 Time Decay 754 | 15 308 267 164 Lost Part 128 | . 50 6 72 Squads Dispatched 7 | . 4 1 2 Investigation 4 | . 2 1 1 Extermination . | . . . . Reinforcement 3 | . 2 . 1 Assault . | . . . . Garrison . | . . . . Intercept . | . . . . Searches Triggered . | . . . . Construction Impeded 1 | . . . 1 Haulers Reinforced . | . . . . Active Scanning Responses . | . . . . Cargo Convoy Interrupts . | . . . . Stealth | -11 -10 -9 -8 --------- Run | Yrd Mat Mat Mat Distress Signals 1 | . . 1 . Communications Jammed . | . . . . Distress Signals . | . . . . Times Spotted 52 | . 25 11 16 Peak Tracking Total 4 | . 3 4 4 Tactical Retreats 5 | . 3 2 . Traps | -11 -10 -9 -8 ------- Run | Yrd Mat Mat Mat Traps Triggered 4 | . 2 1 1 Indirectly . | . . . . Trap Hack Attempts . | . . . . Triggered . | . . . . Disarmed . | . . . . Reprogrammed 1 | . . 1 . Reused 1 | . . 1 . Traps Extracted . | . . . . Installed . | . . . . Triggered 1 | . . 1 . Machines | -11 -10 -9 -8 ---------- Run | Yrd Mat Mat Mat Machines Disabled 2 | . . 2 . Max in Single Turn 2 | . . 2 . Machines Repaired . | . . . . Machines Dismantled . | . . . . Machines Sabotaged . | . . . . Overloaded Fab Kills . | . . . . Hacking | -11 -10 -9 -8 --------- Run | Yrd Mat Mat Mat Machines Accessed 8 | . 4 3 1 Terminals 7 | . 3 3 1 Fabricators . | . . . . Repair Stations . | . . . . Recycling Units 1 | . 1 . . Scanalyzers . | . . . . Garrison Access . | . . . . Total Hacks 18 | . 8 7 3 Successful 13 | . 6 4 3 Failed 5 | . 2 3 . Catastrophic . | . . . . Database Lockouts . | . . . . Manual . | . . . . Terminals 17 | . 7 7 3 Fabricators . | . . . . Repair Stations . | . . . . Recycling Units 1 | . 1 . . Scanalyzers . | . . . . Garrison Access . | . . . . Terminal Hacks 12 | . 5 4 3 Branch Access Points 2 | . 1 . 1 Recycling Unit Index 1 | . 1 . . Alert Level 2 | . . 1 1 Reprogram Traps 1 | . . 1 . Maintenance Status 1 | . 1 . . Surveillance Status 1 | . . 1 . Reinforcement Status 1 | . . . 1 Hauler Manifests 1 | . 1 . . Zone Layout 2 | . 1 1 . Fabricator Hacks . | . . . . Repair Station Hacks . | . . . . Recycling Unit Hacks 1 | . 1 . . Retrieve Matter 1 | . 1 . . Scanalyzer . | . . . . Garrison Access Hacks . | . . . . Unauthorized Hacks . | . . . . Terminals . | . . . . Fabricators . | . . . . Repair Stations . | . . . . Recycling Units . | . . . . Scanalyzers . | . . . . Garrison Access . | . . . . Data Cores Recovered . | . . . . Used . | . . . . Hacking Detections 4 | . 3 1 . Full Trace Events . | . . . . Feedback Events . | . . . . Feedback Blocked . | . . . . Robot Schematics Acquired . | . . . . Robots Built . | . . . . Authchips . | . . . . Time . | . . . . Total Robot Build Rating . | . . . . Part Schematics Acquired . | . . . . Parts Built . | . . . . Authchips . | . . . . Time . | . . . . Total Part Build Rating . | . . . . Part Studies Acquired . | . . . . Parts Repaired . | . . . . Time . | . . . . Parts Recycled . | . . . . Recycled Matter . | . . . . Retrieved Matter . | . . . . Retrieved Components . | . . . . Parts Scanalyzed . | . . . . Part Schematics Acquired . | . . . . Parts Damaged . | . . . . Bothacking | -11 -10 -9 -8 ------------ Run | Yrd Mat Mat Mat Used RIF Installer . | . . . . Robots Hacked . | . . . . Non-combat . | . . . . Combat . | . . . . Robot Hacks Applied . | . . . . Relay Couplers Released . | . . . . Fabnet Peak Effective % . | . . . . Robots Rewired . | . . . . Allies Hacked . | . . . . Hacks Repelled . | . . . . Allies | -11 -10 -9 -8 -------- Run | Yrd Mat Mat Mat Total Allies . | . . . . Largest Group . | . . . . Highest-Rated Group . | . . . . Highest-Rated Ally . | . . . . Total Orders . | . . . . Ally Attacks . | . . . . Total Damage . | . . . . Kills . | . . . . Allies Corrupted . | . . . . Allies Melted . | . . . . Intel | -11 -10 -9 -8 ------- Run | Yrd Mat Mat Mat Active Infowar (turns) 2245 | 84 833 820 508 Terrain 58 | 58 . . . Seismic 2187 | 26 833 820 508 Robot Analysis Total . | . . . . Derelict Logs Recovered . | . . . . Drone Launches . | . . . . Drone Recoveries . | . . . . Exploration | -11 -10 -9 -8 ------------- Run | Yrd Mat Mat Mat Turns Passed 2910 | 189 1338 820 563 Spaces Moved 1727 | 107 783 589 248 Core 12 | 12 . . . Treads 58 | . . . 58 Legs 1657 | 95 783 589 190 Wheels . | . . . . Hover . | . . . . Flight . | . . . . Fastest Speed 50 | 50 120 120 120 Average Speed 126 | 112 120 120 164 Slowest Speed 260 | 120 190 190 260 Overloaded Moves . | . . . . Propulsion Burnouts . | . . . . Robots Hopped . | . . . . Potential Cave-ins . | . . . . Cave-ins Triggered . | . . . . Exploration Rate (%) 32 | 5 65 42 18 Regions Visited 3 Branch Regions . Pre-discovered Areas . | . . . . Known Exits Taken 2 | . 1 1 . Unknown Exits Taken 1 | 1 . . . Scrap Searched . | . . . . Spaces Dug . | . . . . Terrain Destroyed 86 | . . 21 65 Melee . | . . . . Projectile 5 | . . . 5 AOE 81 | . . 21 60 Terrain Rammed . | . . . . Walls Destroyed . | . . . . Machines Disabled . | . . . . Actions | -11 -10 -9 -8 --------- Run | Yrd Mat Mat Mat Total 2229 | 156 1094 655 324 Wait 227 | 8 216 3 . Move 1724 | 106 782 588 248 Hop . | . . . . Pick Up 50 | 12 19 10 9 Fast Attach . | . . . . Attach 43 | 11 9 12 11 Detach 13 | 4 . 7 2 Swap 1 | . . 1 . Drop 23 | 1 10 7 5 Fire 140 | 14 57 27 42 Melee 4 | . . . 4 Ram . | . . . . Kick 4 | . 1 . 3 Crush . | . . . . Escape Stasis . | . . . . Rewire . | . . . . Trap . | . . . . Miscellaneous . | . . . . Route ------- -11/Scrapyard -10/Materials (discovered 2 exits: *Mat / *Min) -9/Materials (discovered 5 exits: *Mat / *Min x2 / *Sto x2) -8/Materials History --------- Turn | Location | Event 33 | -11/Scrapyard | Discovered new exit (range 16) 190 | -11/Scrapyard | Entered Materials 211 | -10/Materials | Identified exit to Mines 305 | -10/Materials | Build established: Mutant 1389 | -10/Materials | Discovered new exit (range 14) 1454 | -10/Materials | Identified exit to Materials 1528 | -10/Materials | Entered another Materials area 1528 | -9/Materials | Evolved 2 slots: Utility x1, Weapon x1 1569 | -9/Materials | Discovered new exit (range 16) 1587 | -9/Materials | Identified exit to Storage 1836 | -9/Materials | Build established: Gunner 1969 | -9/Materials | Discovered new exit (range 6) 1975 | -9/Materials | Identified exit to Mines 1981 | -9/Materials | Discovered exit to Storage (range 14) 2063 | -9/Materials | Discovered new exit (range 3) 2067 | -9/Materials | Identified exit to Materials 2139 | -9/Materials | Discovered exit to Mines (range 15) 2348 | -9/Materials | Entered another Materials area 2348 | -8/Materials | Evolved 2 slots: Propulsion x1, Utility x1 2566 | -8/Materials | Build established: Mutant 2906 | -8/Materials | Lost 6 parts (1p2n2u1w) 2911 | -8/Materials | Self-destructed Last Messages --------------- Rocket Launcher temporarily disabled. K-01 Serf cleans the Terminal. U-05 Engineer builds a Wall. The unstable cave ceiling collapses. K-01 Serf collects debris. U-05 Engineer lays Concrete. K-01 Serf collects debris. The unstable cave ceiling collapses. Kicked W-25 Informer. Kicked W-25 Informer out of the way. U-05 Engineer builds a Wall. U-05 Engineer lays Concrete. K-01 Serf collects debris. U-05 Engineer lays Concrete. Kicked U-05 Engineer. U-05 Engineer knocked back. ALERT: Construction progress impeded, dispatching reinforcements to local area. The unstable cave ceiling collapses. K-01 Serf collects debris. Map ----- +----------------------------------------------------+ | ???????????????????????# "" ## #??? | | ???????????????????????#### # #??? | | ?????????????????? ????# ## #??? | | ?????????????????# #######+## #??? | | ?????????????????# #??? | | ?????????????????# #??? | | ?????????????????# #??? | | ?????????????????# #######+### ##??? | | ?????????????????? ????# # #???? | | ??????????????????????????# [ # #???? | | ??????????????????????????# ! # #???? | | ??????????????????????????# """ # #???? | | ??????????????????????????# """ + #???? | | ??????????????????????????# """ # #???? | | ??????????????????????????# #!#???? | | ?????????????????????############### #???? | | ?????????????????????# ## T #!#???? | | ?????????????????????# ## #=#???? | | ?????????????????????? ## """! # #???? | | ????????????????###### ## """[ #!##??? | | ?????????????#?### # # ?# """ #["#??? | | ?????????????# # #### #?# % #!##??? | | ?????????????# k u #?####+### #???? | | ?????????????# # # #??# # #???? | | ?????????????# # %u##### # #???? | | ??????????????# @ T # #???? | | ??????????????## # #####= # #???? | | ???????????????## ! #???# #???? | | ????????????????### # ##???## #???? | | ?????????????????## # ##?????# #???? | | ??????????????????######??????# #???? | | ??????????????????????????????# #???? | | ??????????????????????????????# #???? | | ??????????????????????????????# #???? | | ??????????????????????????????# #???? | | ??????????????????????????????# #???? | | ??????????????????????????????# #???? | | ??????????????????????????????? #???? | | ??????????????????????????????? #???? | | ??????????????????????????????? #???? | | ??????????????????????????????? #???? | | ??????????????????????????????? #???? | | ??????????????????????????????? ?????? | | ??????????????????????????????? ???????? | | ?????????????????????????????????????????? | | ?????????????????????????????????????????? | | ?????????????????????????????????????????? | | ?????????????????????????????????????????? | | ?????????????????????????????????????????? | | ?????????????????????????????????????????? | +----------------------------------------------------+ Best States ------------- Heat Dissipation 31 Energy Generation 14 Energy Capacity 265 Matter Stores 300 Matter Capacity 300 Sight Range 16 Terrain Scan Range 16 Terrain Scan Density 10 Armor Coverage 150 Evasion (%) 55 Recoil Reduction 1 Item Schematics ----------------- None Robot Schematics ------------------ None Fabricated ------------ Nothing Repaired ---------- Nothing Studied --------- None Alien Tech Used ----------------- None Achievements -------------- Well Done Challenges ------------ None Game ------ Seed TerrainFissionSword Manual? 0 Play Time 00:41:58 Cumulative 6.2 hours Start 2025.11.30 @ 22:18:14 End 2025.11.30 @ 23:02:11 Sessions 1 Manual Loads 0 Difficulty Rogue Special Mode None Game No. 13 Rogue 13 Adventurer 0 Explorer 0 Win Type - Total 0 Types 0/0/0/0/0/0/0/0/0/0 Lore% 0 Gallery% 7 Achievement% 8 Wizard Run 0 Options --------- Layout 1 ASCII 0 Keyboard 0 Movement Arrows Keybinds 0 Fullscreen 1 Font 24/Smallcaps Map View 50x35 Zoom Use 0% Tactical HUD 0 Map Filters NONE Filters NONE Steam 1 RUN: 551dd136-aa36-422d-9e18-7eccd3591f9d